[Event "*** MasterClass Titled Tuesday Blitz"]
[Site "Chess.com"]
[Date "2017.12.12"]
[Round "7"]
[White "sandager"]
[Black "marianokar"]
[Result "0-1"]
[WhiteElo "1965"]
[BlackElo "2295"]
[TimeControl "180+2"]
[EndTime "14:36:18 PST"]
[Termination "marianokar won by resignation"]

1. e4 {[%clk 0:03:00.5]} 1... c5 {[%clk 0:02:59.1]} 2. Nf3 {[%clk 0:03:00.3]}
2... Nc6 {[%clk 0:02:59.7]} 3. d4 {[%clk 0:03:01.7]} 3... cxd4 {[%clk
0:03:00.9]} 4. Nxd4 {[%clk 0:03:03.2]} 4... Nf6 {[%clk 0:03:02.8]} 5. Nc3 {[%clk
0:03:02.2]} 5... d6 {[%clk 0:03:03.9]} 6. Be2 {[%clk 0:03:00.1]} 6... e5 {[%clk
0:03:03]} 7. Nb3 {[%clk 0:02:59.4]} 7... Be7 {[%clk 0:03:03.3]} 8. O-O {[%clk
0:02:59.9]} 8... O-O {[%clk 0:03:05.2]} 9. Qd3 {[%clk 0:02:51.2]} 9... a5 {[%clk
0:03:06]} 10. a4 {[%clk 0:02:50.3]} 10... Nb4 {[%clk 0:03:06.3]} 11. Qd1 {[%clk
0:02:50.7]} 11... Be6 {[%clk 0:03:01.7]} 12. Bg5 {[%clk 0:02:49.8]} 12... Nxe4
{[%clk 0:02:36.6]} 13. Nxe4 {[%clk 0:02:43]} 13... Bxg5 {[%clk 0:02:36.9]} 14.
Nxd6 {[%clk 0:02:28.5]} 14... Be7 {[%clk 0:02:33.1]} 15. Nc4 {[%clk 0:02:28.4]}
15... Qxd1 {[%clk 0:02:31.4]} 16. Raxd1 {[%clk 0:02:22.9]} 16... Nxc2 {[%clk
0:02:27.1]} 17. Nbxa5 {[%clk 0:02:04.9]} 17... Nd4 {[%clk 0:02:26]} 18. Bd3
{[%clk 0:01:55]} 18... b6 {[%clk 0:02:14.2]} 19. Nb7 {[%clk 0:01:49.8]} 19...
Rxa4 {[%clk 0:02:11.1]} 20. Nxe5 {[%clk 0:01:47]} 20... Rb8 {[%clk 0:01:54.2]}
21. Be4 {[%clk 0:01:31]} 21... Ne2+ {[%clk 0:01:49.6]} 22. Kh1 {[%clk
0:01:30.6]} 22... Rxe4 {[%clk 0:01:51.5]} 23. Nc6 {[%clk 0:01:25.4]} 23... Rxb7
{[%clk 0:01:52.3]} 24. Nxe7+ {[%clk 0:01:25.8]} 24... Kf8 {[%clk 0:01:54.2]} 25.
Nc6 {[%clk 0:01:23.1]} 25... Rd7 {[%clk 0:01:47.3]} 26. Ra1 {[%clk 0:01:03.4]}
26... g6 {[%clk 0:01:45.9]} 0-1

[Event "*** MasterClass Titled Tuesday Blitz"]
[Site "Chess.com"]
[Date "2017.12.12"]
[Round "7"]
[White "krzyzan94"]
[Black "MITerryble"]
[Result "0-1"]
[WhiteElo "2615"]
[BlackElo "2671"]
[TimeControl "180+2"]
[EndTime "14:36:47 PST"]
[Termination "MITerryble won by checkmate"]

1. e4 {[%clk 0:03:01.9]} 1... e6 {[%clk 0:03:00.6]} 2. d4 {[%clk 0:03:02.5]}
2... d5 {[%clk 0:03:01.6]} 3. Nc3 {[%clk 0:03:03.8]} 3... Nf6 {[%clk 0:03:02.4]}
4. e5 {[%clk 0:03:04.5]} 4... Nfd7 {[%clk 0:03:02.7]} 5. f4 {[%clk 0:03:05.5]}
5... c5 {[%clk 0:03:04]} 6. Nf3 {[%clk 0:03:07.1]} 6... Nc6 {[%clk 0:03:05.3]}
7. Be3 {[%clk 0:03:08.1]} 7... Be7 {[%clk 0:03:06.2]} 8. Qd2 {[%clk 0:03:05.3]}
8... O-O {[%clk 0:03:06.7]} 9. dxc5 {[%clk 0:03:06.1]} 9... Nxc5 {[%clk
0:03:06.2]} 10. O-O-O {[%clk 0:03:07.2]} 10... b6 {[%clk 0:03:05]} 11. Bb5
{[%clk 0:03:05]} 11... Qc7 {[%clk 0:03:04.9]} 12. Bxc6 {[%clk 0:03:01.9]} 12...
Qxc6 {[%clk 0:03:05.4]} 13. Nd4 {[%clk 0:03:03.8]} 13... Qd7 {[%clk 0:03:00.1]}
14. f5 {[%clk 0:02:44.5]} 14... exf5 {[%clk 0:02:58.5]} 15. g4 {[%clk
0:02:45.8]} 15... fxg4 {[%clk 0:02:51.2]} 16. h3 {[%clk 0:02:47.2]} 16... gxh3
{[%clk 0:02:22]} 17. Rdg1 {[%clk 0:02:39.6]} 17... g6 {[%clk 0:02:20.7]} 18. Bg5
{[%clk 0:02:11]} 18... Bxg5 {[%clk 0:02:16.7]} 19. Qxg5 {[%clk 0:02:07]} 19...
Ne6 {[%clk 0:02:14.2]} 20. Nxe6 {[%clk 0:02:02.3]} 20... Qxe6 {[%clk 0:02:13.5]}
21. Rg3 {[%clk 0:01:58.9]} 21... Qf5 {[%clk 0:02:03.2]} 22. Qh6 {[%clk
0:01:32.1]} 22... Qxe5 {[%clk 0:01:55.2]} 23. Nxd5 {[%clk 0:01:20.4]} 23... Qxd5
{[%clk 0:01:51.8]} 24. Rgxh3 {[%clk 0:01:21]} 24... Bxh3 {[%clk 0:01:51.1]} 25.
Rxh3 {[%clk 0:01:22.9]} 25... Rfe8 {[%clk 0:01:29.1]} 26. Qxh7+ {[%clk 0:01:16]}
26... Kf8 {[%clk 0:01:29.8]} 27. Qh6+ {[%clk 0:01:14.7]} 27... Ke7 {[%clk
0:01:30.2]} 28. Re3+ {[%clk 0:01:15.3]} 28... Kf6 {[%clk 0:01:22]} 29. Qf4+
{[%clk 0:00:46]} 29... Kg7 {[%clk 0:01:20]} 30. Rf3 {[%clk 0:00:47.1]} 30...
Re1# {[%clk 0:01:18.6]} 0-1

[Event "*** MasterClass Titled Tuesday Blitz"]
[Site "Chess.com"]
[Date "2017.12.12"]
[Round "7"]
[White "dolynachess"]
[Black "nicegg"]
[Result "1-0"]
[WhiteElo "2284"]
[BlackElo "1985"]
[TimeControl "180+2"]
[EndTime "14:37:23 PST"]
[Termination "dolynachess won by resignation"]

1. d4 {[%clk 0:03:01.9]} 1... Nf6 {[%clk 0:02:58.8]} 2. c4 {[%clk 0:03:02]} 2...
e6 {[%clk 0:02:57.3]} 3. Nc3 {[%clk 0:03:02.3]} 3... Bb4 {[%clk 0:02:58.3]} 4.
e3 {[%clk 0:03:03.7]} 4... Bxc3+ {[%clk 0:02:58.8]} 5. bxc3 {[%clk 0:03:03.9]}
5... c5 {[%clk 0:03:00.1]} 6. Bd3 {[%clk 0:02:53.3]} 6... d6 {[%clk 0:03:00]} 7.
Ne2 {[%clk 0:02:53.8]} 7... Nc6 {[%clk 0:03:00.6]} 8. O-O {[%clk 0:02:54.1]}
8... e5 {[%clk 0:03:00.9]} 9. d5 {[%clk 0:02:25.9]} 9... Na5 {[%clk 0:03:00.2]}
10. e4 {[%clk 0:02:26.1]} 10... b6 {[%clk 0:02:59.2]} 11. f4 {[%clk 0:02:15.5]}
11... Ba6 {[%clk 0:02:48.8]} 12. fxe5 {[%clk 0:02:14.8]} 12... dxe5 {[%clk
0:02:47.9]} 13. Bg5 {[%clk 0:02:15.6]} 13... h6 {[%clk 0:02:40.2]} 14. Bxf6
{[%clk 0:02:14.1]} 14... gxf6 {[%clk 0:02:41.2]} 15. Ng3 {[%clk 0:02:14.2]}
15... Qd7 {[%clk 0:02:06.8]} 16. Rxf6 {[%clk 0:02:04.7]} 16... Bxc4 {[%clk
0:02:04.1]} 17. Nf5 {[%clk 0:01:50.5]} 17... O-O-O {[%clk 0:01:35.8]} 18. Nd6+
{[%clk 0:01:39.5]} 18... Qxd6 {[%clk 0:01:23.2]} 19. Rxd6 {[%clk 0:01:41.4]}
19... Rxd6 {[%clk 0:01:23.7]} 20. Bxc4 {[%clk 0:01:37.9]} 20... Nxc4 {[%clk
0:01:22.9]} 21. Qg4+ {[%clk 0:01:33.6]} 21... Kb8 {[%clk 0:01:11.7]} 22. Qg7
{[%clk 0:01:20.4]} 22... Rhd8 {[%clk 0:00:51.9]} 23. Rf1 {[%clk 0:01:19.6]}
23... Rg6 {[%clk 0:00:44.9]} 24. Qxf7 {[%clk 0:01:16.8]} 24... Rdg8 {[%clk
0:00:44.8]} 25. g3 {[%clk 0:01:10.5]} 25... h5 {[%clk 0:00:43.3]} 26. Qe7 {[%clk
0:01:01.2]} 26... Rg4 {[%clk 0:00:29.1]} 27. Rf7 {[%clk 0:00:57.3]} 1-0

[Event "*** MasterClass Titled Tuesday Blitz"]
[Site "Chess.com"]
[Date "2017.12.12"]
[Round "7"]
[White "toad"]
[Black "TST2014"]
[Result "0-1"]
[WhiteElo "2185"]
[BlackElo "2262"]
[TimeControl "180+2"]
[EndTime "14:37:36 PST"]
[Termination "TST2014 won by checkmate"]

1. d4 {[%clk 0:03:01.9]} 1... Nf6 {[%clk 0:02:59.1]} 2. c4 {[%clk 0:03:03.1]}
2... g6 {[%clk 0:03:00.1]} 3. g3 {[%clk 0:03:04.2]} 3... Bg7 {[%clk 0:03:00.8]}
4. Bg2 {[%clk 0:03:05.5]} 4... O-O {[%clk 0:03:01.6]} 5. Nf3 {[%clk 0:03:06.1]}
5... c6 {[%clk 0:02:59.7]} 6. Nc3 {[%clk 0:03:00.9]} 6... d5 {[%clk 0:03:00.4]}
7. cxd5 {[%clk 0:03:01.6]} 7... cxd5 {[%clk 0:03:01.9]} 8. Ne5 {[%clk
0:03:02.1]} 8... Nc6 {[%clk 0:03:01.8]} 9. Nxc6 {[%clk 0:03:01.8]} 9... bxc6
{[%clk 0:03:02.1]} 10. O-O {[%clk 0:03:00.2]} 10... Qa5 {[%clk 0:02:55]} 11. Qa4
{[%clk 0:02:47.9]} 11... Qb6 {[%clk 0:02:50.7]} 12. e4 {[%clk 0:02:14.6]} 12...
Nxe4 {[%clk 0:02:39.9]} 13. Nxe4 {[%clk 0:02:15.6]} 13... dxe4 {[%clk
0:02:39.7]} 14. Be3 {[%clk 0:01:52.7]} 14... f5 {[%clk 0:02:36.6]} 15. Rfc1
{[%clk 0:01:38.3]} 15... Qb5 {[%clk 0:02:08.5]} 16. Qxb5 {[%clk 0:00:59.8]}
16... cxb5 {[%clk 0:02:09.2]} 17. Rc7 {[%clk 0:01:01.2]} 17... Bf6 {[%clk
0:02:06.4]} 18. a4 {[%clk 0:00:54.2]} 18... b4 {[%clk 0:01:56]} 19. Bf1 {[%clk
0:00:54.2]} 19... Be6 {[%clk 0:01:52.6]} 20. Ba6 {[%clk 0:00:35.6]} 20... Rfd8
{[%clk 0:01:39.3]} 21. Rac1 {[%clk 0:00:33.2]} 21... Kf7 {[%clk 0:01:39.4]} 22.
Rd1 {[%clk 0:00:16.5]} 22... Bb3 {[%clk 0:01:31.6]} 23. Rd2 {[%clk 0:00:13.6]}
23... Rd6 {[%clk 0:01:32.5]} 24. Bb7 {[%clk 0:00:14.2]} 24... Rad8 {[%clk
0:01:32.3]} 25. a5 {[%clk 0:00:12.6]} 25... Bxd4 {[%clk 0:01:30.2]} 26. Bxd4
{[%clk 0:00:12.2]} 26... Rxd4 {[%clk 0:01:31.7]} 27. Rxd4 {[%clk 0:00:13.8]}
27... Rxd4 {[%clk 0:01:32.1]} 28. a6 {[%clk 0:00:09.1]} 28... Rd1+ {[%clk
0:01:28.1]} 29. Kg2 {[%clk 0:00:10]} 29... Rd2 {[%clk 0:01:28.7]} 30. Bc8 {[%clk
0:00:08.8]} 30... e3 {[%clk 0:01:28]} 31. Rxa7 {[%clk 0:00:06.8]} 31... e2
{[%clk 0:01:27.1]} 32. Rc7 {[%clk 0:00:03]} 32... e1=Q {[%clk 0:01:26.1]} 33. a7
{[%clk 0:00:04.6]} 33... Qxf2+ {[%clk 0:01:26.3]} 34. Kh3 {[%clk 0:00:05.8]}
34... Qxh2# {[%clk 0:01:27]} 0-1

[Event "*** MasterClass Titled Tuesday Blitz"]
[Site "Chess.com"]
[Date "2017.12.12"]
[Round "7"]
[White "goldenspine"]
[Black "PulpanJ"]
[Result "0-1"]
[WhiteElo "2291"]
[BlackElo "2488"]
[TimeControl "180+2"]
[EndTime "14:37:48 PST"]
[Termination "PulpanJ won on time"]

1. Nf3 {[%clk 0:03:01.9]} 1... Nf6 {[%clk 0:03:00.3]} 2. g3 {[%clk 0:03:03.5]}
2... d5 {[%clk 0:02:58.4]} 3. d4 {[%clk 0:03:04.6]} 3... e6 {[%clk 0:02:55]} 4.
Bg2 {[%clk 0:03:03.5]} 4... Be7 {[%clk 0:02:56.3]} 5. c4 {[%clk 0:03:04.7]} 5...
O-O {[%clk 0:02:58.2]} 6. O-O {[%clk 0:03:05.7]} 6... dxc4 {[%clk 0:02:59.7]} 7.
Qc2 {[%clk 0:03:04.4]} 7... a6 {[%clk 0:03:00]} 8. Qxc4 {[%clk 0:03:05.4]} 8...
b5 {[%clk 0:03:00.8]} 9. Qc2 {[%clk 0:03:06.7]} 9... Bb7 {[%clk 0:03:02.3]} 10.
Bd2 {[%clk 0:03:08.3]} 10... Ra7 {[%clk 0:03:01.7]} 11. Ba5 {[%clk 0:03:06.7]}
11... Nc6 {[%clk 0:03:02.1]} 12. Bd2 {[%clk 0:02:20.4]} 12... Nb4 {[%clk
0:02:43.4]} 13. Bxb4 {[%clk 0:02:17.8]} 13... Bxb4 {[%clk 0:02:43.8]} 14. a3
{[%clk 0:02:12.5]} 14... Bd6 {[%clk 0:02:43.3]} 15. b4 {[%clk 0:02:10.3]} 15...
a5 {[%clk 0:02:40.9]} 16. bxa5 {[%clk 0:02:02.1]} 16... Rxa5 {[%clk 0:02:42.7]}
17. Nbd2 {[%clk 0:02:03]} 17... Qa8 {[%clk 0:02:35.3]} 18. Rfb1 {[%clk 0:01:26]}
18... Bd5 {[%clk 0:02:00.5]} 19. Ne1 {[%clk 0:01:24.8]} 19... Bxg2 {[%clk
0:01:59.1]} 20. Nxg2 {[%clk 0:01:26.7]} 20... Rb8 {[%clk 0:01:53.1]} 21. a4
{[%clk 0:01:23.2]} 21... Re8 {[%clk 0:01:32.5]} 22. e4 {[%clk 0:01:02.9]} 22...
e5 {[%clk 0:01:30.6]} 23. dxe5 {[%clk 0:00:59.8]} 23... Bxe5 {[%clk 0:01:30.1]}
24. Ra3 {[%clk 0:00:55.4]} 24... Bd6 {[%clk 0:01:28.1]} 25. Re3 {[%clk 0:00:53]}
25... bxa4 {[%clk 0:01:23.9]} 26. Nc4 {[%clk 0:00:53.5]} 26... Rc5 {[%clk
0:01:24.1]} 27. Qa2 {[%clk 0:00:26.7]} 27... Nxe4 {[%clk 0:01:20.3]} 28. Rbe1
{[%clk 0:00:11]} 28... Qd5 {[%clk 0:01:19.7]} 29. Nxd6 {[%clk 0:00:04.6]} 29...
Qxa2 {[%clk 0:01:19.2]} 30. Nxe8 {[%clk 0:00:05.8]} 30... Qxf2+ {[%clk
0:01:20.6]} 31. Kh1 {[%clk 0:00:06.6]} 31... Rc2 {[%clk 0:01:22]} 0-1

[Event "*** MasterClass Titled Tuesday Blitz"]
[Site "Chess.com"]
[Date "2017.12.12"]
[Round "7"]
[White "jposthuma"]
[Black "kereswasbest"]
[Result "1-0"]
[WhiteElo "2335"]
[BlackElo "2202"]
[TimeControl "180+2"]
[EndTime "14:37:49 PST"]
[Termination "jposthuma won by resignation"]

1. d4 {[%clk 0:03:01.9]} 1... Nf6 {[%clk 0:02:59.9]} 2. c4 {[%clk 0:03:02.7]}
2... e6 {[%clk 0:03:00.8]} 3. g3 {[%clk 0:03:03.5]} 3... d5 {[%clk 0:03:01]} 4.
Bg2 {[%clk 0:03:04.2]} 4... b6 {[%clk 0:03:02.5]} 5. Nf3 {[%clk 0:03:04.9]} 5...
Bb7 {[%clk 0:03:04]} 6. O-O {[%clk 0:03:05.7]} 6... Be7 {[%clk 0:03:04.6]} 7.
Nbd2 {[%clk 0:03:04.5]} 7... O-O {[%clk 0:03:05.3]} 8. Qc2 {[%clk 0:03:04.4]}
8... c5 {[%clk 0:03:04.1]} 9. cxd5 {[%clk 0:03:05.1]} 9... exd5 {[%clk
0:03:04.9]} 10. b3 {[%clk 0:02:58]} 10... Nc6 {[%clk 0:03:05.6]} 11. dxc5 {[%clk
0:02:58.6]} 11... bxc5 {[%clk 0:03:06.1]} 12. Bb2 {[%clk 0:02:57.6]} 12... Rc8
{[%clk 0:03:05.2]} 13. Rac1 {[%clk 0:02:56.9]} 13... Re8 {[%clk 0:03:02]} 14.
Rfd1 {[%clk 0:02:49.1]} 14... Qa5 {[%clk 0:02:55.3]} 15. Qb1 {[%clk 0:02:48.6]}
15... Ba6 {[%clk 0:02:48]} 16. Bc3 {[%clk 0:02:18.4]} 16... Qb6 {[%clk
0:02:45.2]} 17. e4 {[%clk 0:02:10.9]} 17... d4 {[%clk 0:02:38.8]} 18. Bb2 {[%clk
0:02:09.8]} 18... Be2 {[%clk 0:02:18.6]} 19. Nc4 {[%clk 0:01:55]} 19... Qb5
{[%clk 0:02:09.8]} 20. Rd2 {[%clk 0:01:45.9]} 20... d3 {[%clk 0:02:09.1]} 21.
Ne1 {[%clk 0:01:38.1]} 21... Rcd8 {[%clk 0:02:03.7]} 22. Nxd3 {[%clk 0:01:36]}
22... Bxd3 {[%clk 0:01:39.3]} 23. Rxd3 {[%clk 0:01:36.5]} 23... Rxd3 {[%clk
0:01:38.7]} 24. Qxd3 {[%clk 0:01:38.4]} 24... Nb4 {[%clk 0:01:38.7]} 25. Qb1
{[%clk 0:01:31.1]} 25... Rd8 {[%clk 0:01:40.2]} 26. e5 {[%clk 0:01:10.2]} 26...
Ng4 {[%clk 0:01:28.9]} 27. h3 {[%clk 0:00:59.1]} 27... Nxf2 {[%clk 0:01:20.4]}
28. Kxf2 {[%clk 0:00:59.4]} 28... Nd3+ {[%clk 0:01:21.9]} 29. Kg1 {[%clk
0:00:59]} 29... Nxc1 {[%clk 0:01:22.5]} 30. Qxc1 {[%clk 0:00:56.1]} 30... Rd3
{[%clk 0:01:18.3]} 31. Kh2 {[%clk 0:00:47.7]} 31... Qd7 {[%clk 0:01:18.8]} 32.
Qf4 {[%clk 0:00:36.4]} 32... h6 {[%clk 0:01:12.2]} 33. Be4 {[%clk 0:00:22.9]}
33... Bg5 {[%clk 0:01:13.1]} 34. Qf5 {[%clk 0:00:19.6]} 34... Rd2+ {[%clk
0:01:14.6]} 35. Nxd2 {[%clk 0:00:20.2]} 35... Qxd2+ {[%clk 0:01:15.4]} 36. Kh1
{[%clk 0:00:18.7]} 36... Qxb2 {[%clk 0:01:11.4]} 37. Qc8+ {[%clk 0:00:18.8]} 1-0

[Event "*** MasterClass Titled Tuesday Blitz"]
[Site "Chess.com"]
[Date "2017.12.12"]
[Round "7"]
[White "arna"]
[Black "GameOverBro"]
[Result "0-1"]
[WhiteElo "2156"]
[BlackElo "2248"]
[TimeControl "180+2"]
[EndTime "14:37:51 PST"]
[Termination "GameOverBro won by resignation"]

1. e4 {[%clk 0:03:01.9]} 1... d6 {[%clk 0:03:00.9]} 2. d4 {[%clk 0:03:01.1]}
2... Nf6 {[%clk 0:03:01.3]} 3. Nc3 {[%clk 0:03:01.5]} 3... e5 {[%clk 0:03:02.6]}
4. Nge2 {[%clk 0:02:56.6]} 4... g6 {[%clk 0:02:56.8]} 5. g3 {[%clk 0:02:51.3]}
5... Bg7 {[%clk 0:02:57.4]} 6. Bg2 {[%clk 0:02:46.1]} 6... O-O {[%clk
0:02:58.5]} 7. O-O {[%clk 0:02:44.5]} 7... c6 {[%clk 0:02:59.6]} 8. h3 {[%clk
0:02:43.9]} 8... b5 {[%clk 0:02:59.3]} 9. a3 {[%clk 0:02:33.8]} 9... Bb7 {[%clk
0:02:57.8]} 10. dxe5 {[%clk 0:02:10.3]} 10... dxe5 {[%clk 0:02:54.8]} 11. Be3
{[%clk 0:01:35.7]} 11... Qc7 {[%clk 0:02:43.7]} 12. Qe1 {[%clk 0:01:12.9]} 12...
Na6 {[%clk 0:02:25.9]} 13. b4 {[%clk 0:00:45.9]} 13... Nd7 {[%clk 0:02:04.4]}
14. f3 {[%clk 0:00:36.6]} 14... Nb6 {[%clk 0:02:02.8]} 15. Qf2 {[%clk
0:00:30.7]} 15... Nc4 {[%clk 0:02:00.7]} 16. Bxa7 {[%clk 0:00:28.4]} 16... Rfd8
{[%clk 0:01:48.1]} 17. Rfd1 {[%clk 0:00:27.3]} 17... Rxd1+ {[%clk 0:01:44.7]}
18. Nxd1 {[%clk 0:00:23.3]} 18... Bc8 {[%clk 0:01:41.3]} 19. Be3 {[%clk
0:00:22.3]} 19... Nxb4 {[%clk 0:01:40.4]} 20. c3 {[%clk 0:00:08.1]} 20... Nc2
{[%clk 0:01:38.2]} 21. Bc1 {[%clk 0:00:07.6]} 21... Nxa1 {[%clk 0:01:38.5]} 22.
f4 {[%clk 0:00:08.2]} 22... Nb3 {[%clk 0:01:37]} 23. Be3 {[%clk 0:00:07.7]}
23... Rxa3 {[%clk 0:01:35.7]} 24. f5 {[%clk 0:00:08.1]} 24... Bf8 {[%clk
0:01:36.8]} 25. f6 {[%clk 0:00:08.6]} 25... Nxe3 {[%clk 0:01:37.5]} 26. Nxe3
{[%clk 0:00:08]} 26... Qb6 {[%clk 0:01:36.4]} 27. Kh2 {[%clk 0:00:07.1]} 27...
Ra2 {[%clk 0:01:37.1]} 28. Qf3 {[%clk 0:00:07.5]} 28... Be6 {[%clk 0:01:25.9]}
29. Nf5 {[%clk 0:00:05.9]} 29... gxf5 {[%clk 0:01:17]} 30. exf5 {[%clk
0:00:06.4]} 30... Bd5 {[%clk 0:01:11.7]} 31. Qg4+ {[%clk 0:00:07.4]} 31... Kh8
{[%clk 0:01:12.5]} 32. h4 {[%clk 0:00:04.1]} 32... Qf2 {[%clk 0:01:12.5]} 33.
Nf4 {[%clk 0:00:03.3]} 0-1

[Event "*** MasterClass Titled Tuesday Blitz"]
[Site "Chess.com"]
[Date "2017.12.12"]
[Round "7"]
[White "TomsKantans"]
[Black "xamax2000"]
[Result "0-1"]
[WhiteElo "2443"]
[BlackElo "2302"]
[TimeControl "180+2"]
[EndTime "14:38:01 PST"]
[Termination "xamax2000 won by checkmate"]

1. e4 {[%clk 0:03:01.9]} 1... e5 {[%clk 0:02:58.8]} 2. Nf3 {[%clk 0:03:02.9]}
2... Nc6 {[%clk 0:02:58.4]} 3. Bb5 {[%clk 0:03:02.9]} 3... g6 {[%clk 0:02:58.2]}
4. O-O {[%clk 0:03:01.5]} 4... Bg7 {[%clk 0:02:53.6]} 5. c3 {[%clk 0:03:02.8]}
5... a6 {[%clk 0:02:52]} 6. Ba4 {[%clk 0:03:03.8]} 6... d6 {[%clk 0:02:49.3]} 7.
d4 {[%clk 0:03:03.3]} 7... Bd7 {[%clk 0:02:50.7]} 8. d5 {[%clk 0:03:00.7]} 8...
Nce7 {[%clk 0:02:48.6]} 9. c4 {[%clk 0:02:54.2]} 9... h6 {[%clk 0:02:42.6]} 10.
Nc3 {[%clk 0:02:51.6]} 10... f5 {[%clk 0:02:40]} 11. b4 {[%clk 0:02:45.8]} 11...
Nf6 {[%clk 0:02:29.8]} 12. exf5 {[%clk 0:02:46.1]} 12... Nxf5 {[%clk 0:02:24.4]}
13. Re1 {[%clk 0:02:43.8]} 13... O-O {[%clk 0:02:23.4]} 14. Bc2 {[%clk
0:02:44.6]} 14... e4 {[%clk 0:02:21.1]} 15. Nd2 {[%clk 0:02:28.5]} 15... Nh4
{[%clk 0:02:01.2]} 16. Bb2 {[%clk 0:02:21]} 16... Ng4 {[%clk 0:01:51.4]} 17.
Ndxe4 {[%clk 0:02:20]} 17... Nxg2 {[%clk 0:01:08.1]} 18. h3 {[%clk 0:00:13.7]}
18... Nxe1 {[%clk 0:01:03.6]} 19. Qxe1 {[%clk 0:00:14.7]} 19... Ne5 {[%clk
0:01:00.9]} 20. Nd2 {[%clk 0:00:13.9]} 20... Qg5+ {[%clk 0:00:58.5]} 21. Kh1
{[%clk 0:00:11.4]} 21... Bxh3 {[%clk 0:00:59.6]} 22. Be4 {[%clk 0:00:11.1]}
22... Rae8 {[%clk 0:00:49.9]} 23. Qe3 {[%clk 0:00:08.2]} 23... Qh4 {[%clk
0:00:47.2]} 24. Qg3 {[%clk 0:00:08.3]} 24... Qxg3 {[%clk 0:00:47.6]} 25. fxg3
{[%clk 0:00:09.2]} 25... Rf2 {[%clk 0:00:46.7]} 26. Rd1 {[%clk 0:00:07]} 26...
Ng4 {[%clk 0:00:42.5]} 27. Bxg6 {[%clk 0:00:05.3]} 27... Rh2+ {[%clk 0:00:40]}
28. Kg1 {[%clk 0:00:06.5]} 28... Bd4# {[%clk 0:00:41.9]} 0-1

[Event "*** MasterClass Titled Tuesday Blitz"]
[Site "Chess.com"]
[Date "2017.12.12"]
[Round "7"]
[White "LuisFSiles"]
[Black "chesstatour"]
[Result "1-0"]
[WhiteElo "2227"]
[BlackElo "1981"]
[TimeControl "180+2"]
[EndTime "14:38:05 PST"]
[Termination "LuisFSiles won on time"]

1. e4 {[%clk 0:03:01.9]} 1... c6 {[%clk 0:03:00.4]} 2. d4 {[%clk 0:02:59.2]}
2... d5 {[%clk 0:03:02.3]} 3. exd5 {[%clk 0:03:00.6]} 3... cxd5 {[%clk
0:03:04.1]} 4. c4 {[%clk 0:03:02.2]} 4... Nf6 {[%clk 0:03:04.5]} 5. Nc3 {[%clk
0:03:03.2]} 5... Nc6 {[%clk 0:03:05.4]} 6. Bg5 {[%clk 0:03:03.9]} 6... Qa5
{[%clk 0:02:56]} 7. Bxf6 {[%clk 0:02:59.6]} 7... exf6 {[%clk 0:02:57.9]} 8. cxd5
{[%clk 0:02:55.3]} 8... Bb4 {[%clk 0:02:57.9]} 9. Ne2 {[%clk 0:02:20.6]} 9...
Ne7 {[%clk 0:02:55.8]} 10. d6 {[%clk 0:02:14]} 10... Bxd6 {[%clk 0:02:55.2]} 11.
g3 {[%clk 0:02:11.2]} 11... O-O {[%clk 0:02:26.7]} 12. Bg2 {[%clk 0:02:11.4]}
12... Bg4 {[%clk 0:02:11]} 13. h3 {[%clk 0:02:03.6]} 13... Bxe2 {[%clk
0:02:03.6]} 14. Qxe2 {[%clk 0:02:02.8]} 14... Nf5 {[%clk 0:01:54.4]} 15. Qd2
{[%clk 0:01:49.8]} 15... Qa6 {[%clk 0:01:16.5]} 16. O-O-O {[%clk 0:01:31.9]}
16... Rac8 {[%clk 0:01:12.6]} 17. Kb1 {[%clk 0:01:28.5]} 17... Bb4 {[%clk
0:01:11.3]} 18. Rc1 {[%clk 0:01:24.8]} 18... Nd6 {[%clk 0:00:54.5]} 19. Bd5
{[%clk 0:00:53.6]} 19... Nb5 {[%clk 0:00:28.4]} 20. Bb3 {[%clk 0:00:20.7]} 20...
Qa5 {[%clk 0:00:22.4]} 21. d5 {[%clk 0:00:19.2]} 21... Bxc3 {[%clk 0:00:13.3]}
22. bxc3 {[%clk 0:00:21.1]} 22... Nxc3+ {[%clk 0:00:04.4]} 23. Ka1 {[%clk
0:00:21.3]} 23... Rfd8 {[%clk 0:00:04.1]} 24. Rc2 {[%clk 0:00:22.3]} 24... Rc7
{[%clk 0:00:02.6]} 25. Rhc1 {[%clk 0:00:23]} 25... Rdc8 {[%clk 0:00:03.2]} 26.
d6 {[%clk 0:00:24.6]} 1-0